bitfinex-derivatives/quotes_ETHF0:USTF0_20250331
["timestamp","ask_amount","ask_price","bid_price","bid_amount"]
[1743385963616,2.57105,1810.5,1810.4,1.37717882]
[1743385964012,2.57105,1810.5,1810.4,0.00827882]
[1743385964815,2.57105,1810.5,1810.4,1.42847882]
[1743385965014,2.57105,1810.5,1810.4,0.00827882]
[1743385968313,2.57105,1810.5,1809.8,4.073]
[1743385968314,1.10536,1809.5,1809.2,0.5528]
[1743385968505,1.10512,1809.9,1809.8,1.3773]
[1743385969116,4.31292,1809.9,1809.8,1.3773]
[1743385970010,1.10518,1809.8,1809.7,0.00551927]
[1743385970211,2.76367,1809.4,1808.8,1.3571]
[1743385970411,3.2078,1809.3,1808.8,1.9099]
[1743385970722,3.2078,1809.5,1808.9,3.14498]
[1743385970920,3.2078,1809.5,1809.0,0.6797]
[1743385971112,1.10557,1809.2,1809.1,5.4821]
[1743385971319,1.10557,1809.2,1809.0,7.70081183]
[1743385971320,1.10561,1809.1,1809.0,7.70081183]
[1743385971514,1.1056,1809.2,1809.0,4.8027]
[1743385971717,4.6055,1809.5,1809.0,4.8027]
[1743385971912,1.10561,1809.1,1809.0,4.8027]
[1743385972114,1.10561,1809.1,1809.0,0.6797]
[1743385972318,1.10557,1809.2,1809.0,7.3097]
[1743385972517,1.10557,1809.2,1809.0,4.8097]
[1743385972719,3.2078,1809.5,1809.2,1.10552]
[1743385972924,4.31317,1809.5,1809.3,4.128]
[1743385973116,3.2078,1809.7,1809.3,4.128]
[1743385973316,3.2078,1809.7,1809.4,0.7173]
[1743385973317,1.10539,1809.5,1809.4,0.7173]
[1743385974827,1.4568,1809.6,1809.0,12.2358]
[1743385975024,3.2078,1809.5,1809.0,3.8875]
[1743385975327,1.10555,1809.2,1809.0,9.13413]
[1743385975728,1.10551,1809.3,1809.0,9.13413]
[1743385975920,1.10554,1809.3,1809.0,9.13413]
[1743385976120,1.10561,1809.1,1809.0,0.6797]
[1743385976426,3.2078,1809.3,1809.0,4.8187]
[1743385976628,3.2078,1809.5,1809.1,0.5528]
[1743385976815,3.2078,1809.5,1809.2,27.6]
[1743385977021,3.2078,1809.5,1809.3,5.24847]
[1743385977416,3.2078,1809.5,1809.4,1.82202]
[1743385977732,1.10533,1809.6,1809.4,1.82198]
[1743385978027,4.31308,1809.7,1809.4,1.82198]
[1743385978223,1.10531,1809.6,1809.4,1.82198]
[1743385978427,1.10531,1809.6,1809.4,0.7166]
[1743385978726,1.10527,1809.7,1809.5,1.10534]
[1743385978930,1.10521,1809.8,1809.6,5.2413]
[1743385979125,1.1053,1809.6,1809.5,0.7203]
[1743385979330,1.1053,1809.6,1809.5,4.8553]
[1743385980231,1.1053,1809.6,1809.5,0.7203]
[1743385980531,1.10527,1809.7,1809.5,4.8543]
[1743385980733,1.1053,1809.6,1809.5,4.8543]
[1743385980929,4.31295,1809.9,1809.5,4.8543]
[1743385981123,4.31295,1809.9,1809.7,1.10522]
[1743385981432,4.31292,1809.9,1809.7,1.1052]
[1743385981625,4.31293,1809.9,1809.7,1.10521]
[1743385982529,3.2078,1809.9,1809.8,4.124]
[1743385982729,3.2078,1809.9,1809.8,5.22918]
[1743385982923,3.2078,1809.9,1809.6,7.27619663]
[1743385983125,3.2078,1809.7,1809.5,0.7203]
[1743385983328,1.10536,1809.5,1809.4,4.8436]
[1743385983632,1.10526,1809.7,1809.5,1.10532]
[1743385983833,1.10523,1809.8,1809.6,1.10529]
[1743385984027,4.31293,1809.9,1809.7,1.1052]
[1743385984234,1.10518,1809.8,1809.7,4.13]
[1743385984532,3.2078,1809.9,1809.7,4.13]
[1743385984730,4.31292,1809.9,1809.7,5.23519]
[1743385985234,1.11337882,1810.0,1809.8,1.10518]
[1743385985531,1.11337882,1810.0,1809.9,1.10512]
[1743385985532,0.00827882,1810.0,1809.9,1.10512]
[1743385986434,0.00827882,1810.0,1809.9,4.31292]
[1743385986629,3.2078,1810.3,1810.1,1.10495]
[1743385986934,1.10493,1810.2,1810.0,4.122]
[1743385987134,1.10493,1810.2,1810.0,5.22702]
[1743385987331,4.31271,1810.3,1810.0,5.22702]
[1743385987536,3.2078,1810.3,1810.2,1.10493]
[1743385987724,3.2078,1810.3,1810.0,4.122]
[1743385987929,1.10493,1810.2,1810.1,0.00827881]
[1743385988433,2.55823,1810.2,1810.1,0.00827881]
[1743385988831,3.2078,1810.3,1810.1,1.11325881]
[1743385989026,3.21607882,1810.4,1810.2,4.118]
[1743385989328,1.10493,1810.2,1810.1,4.12727881]
[1743385989727,2.55823,1810.2,1810.1,4.12727881]
[1743385989931,3.2078,1810.0,1809.2,0.5528]
[1743385990134,1.10567,1809.0,1808.9,1.479]
[1743385990532,1.10567,1809.0,1808.6,1.92716641]
[1743385990533,1.10584,1808.8,1808.4,5.33201]
[1743385990733,2.55906,1808.9,1808.7,1.479]
[1743385991237,1.10579,1808.8,1808.7,1.479]
[1743385991737,2.54799,1808.8,1808.7,1.479]
[1743385992035,3.2078,1808.9,1808.7,1.479]
[1743385992237,4.31356,1808.9,1808.7,1.479]
[1743385992535,3.2078,1808.9,1808.8,4.223]
[1743385992838,3.2078,1808.9,1808.8,12.02358397]
[1743385993431,3.2078,1808.9,1808.8,13.12937397]
[1743385993731,3.2078,1808.9,1808.8,13.12537397]
[1743385993936,3.2078,1808.9,1808.8,13.86087397]
[1743385994137,3.2078,1808.9,1808.8,12.75508397]
[1743385994633,3.2078,1808.9,1808.8,8.53608397]
[1743385994834,0.00827882,1809.0,1808.8,13.85587397]
[1743385995029,0.00827882,1809.0,1808.9,1.4491]
[1743385995538,4.32174882,1809.0,1808.9,7.22365323]
[1743385995736,1.10573,1808.9,1808.8,1.4491]
[1743385995939,2.52753,1808.9,1808.8,1.4491]
[1743385996437,1.4218,1808.9,1808.5,0.6978]
[1743385996637,4.31365,1808.7,1808.6,1.4491]
[1743385997237,1.10602,1808.5,1808.1,4.31397]
[1743385997447,1.10602,1808.5,1808.4,1.4077]
[1743385997740,1.4575,1808.6,1808.4,1.4077]
[1743385997941,2.56345,1808.6,1808.4,1.4077]
[1743385998441,1.4575,1808.6,1808.1,3.2078]
[1743385998640,1.10612,1808.3,1808.2,1.4077]
[1743385999126,1.1063,1808.0,1807.8,0.5536]
[1743385999326,4.31406,1808.1,1807.9,1.4077]
[1743385999533,3.21607882,1808.1,1807.9,2.51402]
[1743385999734,3.21607882,1808.1,1807.9,2.514]
[1743386000034,0.00827882,1808.1,1807.9,1.4077]
[1743386000348,3.21607882,1808.1,1807.9,1.4077]
[1743386000637,3.21607882,1808.1,1807.5,3.2078]
[1743386000840,1.10646,1807.7,1807.6,1.4848]
[1743386001531,1.3677,1807.7,1807.6,1.4848]
[1743386001733,4.31421,1807.8,1807.6,1.4848]
[1743386001932,1.10646,1807.7,1807.6,1.4848]
[1743386002133,4.31424,1807.8,1807.6,1.4848]
[1743386002739,2.76548,1808.2,1807.6,1.4848]
[1743386002740,3.2078,1808.7,1807.8,2.76595]
[1743386002941,2.76417,1809.0,1808.4,3.2078]
[1743386003135,1.10589,1808.7,1808.5,1.4848]
[1743386003340,1.10581,1808.8,1808.5,1.4848]
[1743386003541,1.10581,1808.8,1808.6,3.2078]
[1743386003729,1.10581,1808.8,1808.7,1.4912]
[1743386004934,0.00827882,1808.9,1808.6,4.31367]
[1743386005129,0.00827882,1808.9,1808.8,3.2078]
[1743386005333,1.11400882,1808.9,1808.8,3.2078]
[1743386005540,1.10579,1808.8,1808.7,1.4912]
[1743386005938,1.10585,1808.7,1808.6,3.2078]
[1743386007339,1.10591,1808.6,1808.5,0.00827882]
[1743386007733,1.10616,1808.2,1808.1,1.3764]
[1743386008447,1.10622,1808.1,1808.0,3.2078]
[1743386009636,1.10622,1808.1,1808.0,4.677]
[1743386010041,1.2234,1808.4,1808.0,4.677]
[1743386010235,1.10603,1808.4,1808.3,3.2078]
[1743386011751,1.2234,1808.7,1808.3,3.2078]
[1743386012048,1.10596,1808.6,1808.5,3.2078]
[1743386012741,1.10597,1808.5,1808.4,1.4692]
[1743386013343,1.225,1808.8,1808.4,1.4692]
[1743386013545,1.225,1808.8,1808.5,3.2078]
[1743386013851,1.10585,1808.7,1808.6,1.4526]
[1743386014747,1.10591,1808.6,1808.5,3.2078]
[1743386014946,1.10608,1808.4,1808.3,3.2078]
[1743386015146,1.10608,1808.4,1808.3,4.6604]
[1743386015343,1.225,1808.8,1808.3,4.6604]
[1743386015549,1.10589,1808.7,1808.5,3.2078]
[1743386015851,1.10589,1808.7,1808.6,1.4993]
[1743386016049,5.01107882,1808.9,1808.6,1.4993]
[1743386016050,0.00827882,1808.9,1808.6,1.4993]
[1743386016244,1.10585,1808.7,1808.6,1.4993]
[1743386016947,0.00827882,1808.9,1808.6,1.4993]
[1743386017252,0.00827882,1808.9,1808.7,3.2078]
[1743386017253,1.10579,1808.8,1808.7,3.2078]
[1743386017448,0.00827882,1808.9,1808.7,3.2078]
[1743386017449,0.00827882,1808.9,1808.8,1.10579]
[1743386017650,0.00827882,1808.9,1808.8,2.60509]
[1743386017845,0.00827882,1808.9,1808.8,6.90909]
[1743386018039,0.00827882,1808.9,1808.8,1.4993]
[1743386018040,1.11400882,1808.9,1808.8,1.4993]
[1743386019052,0.00827882,1808.9,1808.8,1.4993]
[1743386019256,1.11400882,1808.9,1808.8,1.4993]
[1743386021856,1.11400882,1808.9,1808.5,3.2078]
[1743386021857,1.10591,1808.6,1808.5,3.2078]
[1743386024655,1.2249,1808.8,1808.5,3.2078]
[1743386024955,0.00827882,1808.9,1808.7,3.2078]
[1743386025152,1.11400882,1808.9,1808.8,1.4913]
[1743386026160,0.00827882,1808.9,1808.8,2.59709]
[1743386026347,1.11400882,1808.9,1808.8,2.9195]
[1743386026957,0.00827882,1808.9,1808.8,4.02529]
[1743386027255,2.76337,1809.6,1808.8,2.9195]
[1743386027453,1.10554,1809.2,1809.1,3.2078]
[1743386028859,1.11380882,1809.3,1809.1,4.31339]
[1743386029056,0.00827882,1809.3,1809.2,1.3862]
[1743386029257,1.11375882,1809.3,1809.2,1.3862]
[1743386030255,0.00827882,1809.3,1809.2,1.3862]
[1743386030455,0.00827882,1809.3,1809.2,2.0817]
[1743386030655,1.11375882,1809.3,1809.2,2.0817]
[1743386030851,0.00827882,1809.3,1809.2,2.0817]
[1743386031056,1.11375882,1809.3,1809.2,2.0817]
[1743386031361,1.11375882,1809.3,1809.2,1.3862]
[1743386032661,0.00827882,1809.3,1809.2,2.49174]
[1743386032856,1.11375882,1809.3,1809.2,1.3862]
[1743386035258,0.00827882,1809.3,1809.2,2.49174]
[1743386035463,0.00827882,1809.3,1809.2,3.22024]
[1743386035657,1.2239,1809.8,1809.4,1.1054]
[1743386035860,21.35392738,1810.1,1810.0,1.10506]
[1743386036163,22.45892738,1810.1,1810.0,3.2078]
[1743386036660,21.35392738,1810.1,1810.0,3.2078]
[1743386037161,1.11322882,1810.2,1810.0,3.2078]
[1743386037362,1.11322882,1810.2,1810.1,5.7591]
[1743386037560,1.11320882,1810.2,1810.1,5.7591]
[1743386037761,0.00827882,1810.2,1810.1,6.4753]
[1743386038859,0.00827882,1810.2,1810.1,7.2013]
[1743386039161,1.11320882,1810.2,1810.1,7.2013]
[1743386040561,1.11320882,1810.2,1810.1,2.9483]
[1743386040754,1.11320882,1810.2,1810.1,1.5061]
[1743386042659,0.00827882,1810.2,1810.1,1.5061]
[1743386042855,0.00827882,1810.2,1810.1,2.61109]
[1743386043257,0.00827882,1810.2,1810.1,1.5061]
[1743386043258,1.11320882,1810.2,1810.1,1.5061]
[1743386043463,1.11320882,1810.2,1810.1,5.7311]
[1743386043958,1.11320882,1810.2,1810.1,1.5061]
[1743386044358,1.10499,1810.1,1810.0,0.00827882]
[1743386044657,2.32789,1810.1,1810.0,0.00827882]
[1743386044859,6.20329,1810.1,1810.0,0.00827882]
[1743386045568,3.70329,1810.1,1810.0,0.00827882]
[1743386046956,1.10512,1809.9,1809.8,3.2078]
[1743386047557,1.10518,1809.8,1809.7,1.3784]
[1743386047763,2.5983,1810.1,1809.7,1.3784]
[1743386048064,2.5983,1810.1,1809.9,3.2078]
[1743386048065,1.105,1810.1,1809.9,3.2078]
[1743386048265,1.105,1810.1,1810.0,1.3784]
[1743386050371,1.11323882,1810.2,1810.0,1.3784]
[1743386050668,0.00827882,1810.2,1810.1,3.2078]
[1743386050855,1.11320882,1810.2,1810.1,3.2078]
[1743386051055,0.00827882,1810.2,1810.1,3.2078]
[1743386051272,1.11320882,1810.2,1810.1,3.2078]
[1743386051473,0.00827882,1810.2,1810.1,3.2078]
[1743386051670,0.00827882,1810.2,1810.1,4.31279]
[1743386052159,1.11320882,1810.2,1810.1,3.2078]
[1743386052566,1.10499,1810.1,1810.0,1.3784]
[1743386052762,1.10499,1810.1,1810.0,4.5862]
[1743386055269,1.10499,1810.1,1810.0,1.3784]
[1743386055471,2.32949,1810.1,1810.0,1.3784]
[1743386057063,1.11325882,1810.2,1810.0,1.3784]
[1743386057263,1.11322882,1810.2,1810.0,5.69121]
[1743386057473,1.11322882,1810.2,1810.0,5.3102]
[1743386057474,1.10499,1810.1,1810.0,5.3102]
[1743386059476,21.35392738,1811.0,1810.1,2.76249]
[1743386059775,1.10456,1810.9,1810.7,3.2078]
[1743386059972,1.10456,1810.9,1810.8,1.4989]
[1743386060574,21.3622062,1811.0,1810.8,1.4989]
[1743386060776,1.10451,1810.9,1810.8,1.4989]
[1743386061572,1.11276882,1811.0,1810.8,1.4989]
[1743386061776,0.00827882,1811.0,1810.8,1.4989]
[1743386061968,1.10451,1810.9,1810.8,1.4989]
[1743386062279,0.00827882,1811.0,1810.8,1.4989]
[1743386062280,1.11274882,1811.0,1810.8,1.4989]
[1743386062673,0.00827882,1811.0,1810.8,2.60345]
[1743386062879,1.11274882,1811.0,1810.9,1.4679]
[1743386064785,0.00827882,1811.0,1810.9,4.6757]
[1743386065482,1.11272882,1811.0,1810.9,4.6757]
[1743386066477,0.00827882,1811.0,1810.9,4.6757]
[1743386066678,1.11272882,1811.0,1810.9,4.6757]
[1743386067185,1.11272882,1811.0,1810.9,1.4679]
[1743386067985,2.33542882,1811.0,1810.9,1.4679]
[1743386068491,1.10451,1810.9,1810.8,3.2078]
[1743386068676,2.32721,1810.9,1810.8,3.2078]
[1743386069981,1.10451,1810.9,1810.8,3.2078]
[1743386070288,2.32721,1810.9,1810.8,3.2078]
[1743386072780,1.10451,1810.9,1810.8,3.2078]
[1743386073282,0.00827882,1811.0,1810.8,5.01782]
[1743386073488,1.11274882,1811.0,1810.9,1.427]
[1743386073688,0.00827882,1811.0,1810.9,2.53151]
[1743386073879,1.10427,1811.3,1811.1,1.10437]
[1743386074175,1.10427,1811.3,1811.2,2.0997]
[1743386074781,1.10427,1811.3,1811.2,5.3075]
[1743386075288,1.11251882,1811.4,1811.2,5.3075]
[1743386075481,1.10426,1811.3,1811.2,5.3075]
[1743386076982,1.10426,1811.3,1811.2,6.0458]
[1743386077287,1.11251882,1811.4,1811.2,6.0458]
[1743386078385,1.10393,1811.9,1811.6,1.10406]
[1743386078693,1.10391,1811.9,1811.7,1.4916]
[1743386078887,1.10396,1811.8,1811.7,1.4916]
[1743386080189,0.00827882,1811.9,1811.7,1.4916]
[1743386080380,0.00827882,1811.9,1811.8,3.2078]
[1743386081484,0.00827882,1811.9,1811.8,4.31176]
[1743386081686,0.00827882,1811.9,1811.8,5.02626]
[1743386082382,0.00827882,1811.9,1811.8,9.12126]
[1743386082685,1.1037,1812.3,1812.1,1.10377]
[1743386082891,1.10363,1812.4,1812.2,1.4971]
[1743386083390,1.10365,1812.3,1812.2,1.4971]
[1743386083885,1.11191882,1812.4,1812.2,1.4971]
[1743386084293,1.11191882,1812.4,1812.2,2.2281]
[1743386084586,0.00827882,1812.4,1812.2,2.2281]
[1743386084787,1.11191882,1812.4,1812.2,2.2281]
[1743386085283,1.10365,1812.3,1812.2,2.2281]
[1743386085484,1.11190882,1812.4,1812.2,2.2281]
[1743386085886,1.10365,1812.3,1812.2,2.2281]
[1743386086087,1.11191882,1812.4,1812.2,2.2281]
[1743386086489,0.00827882,1812.4,1812.2,2.2281]
[1743386086691,0.00827882,1812.4,1812.3,4.31145]
[1743386086885,0.00827882,1812.4,1812.3,4.99125]
[1743386087392,0.00827882,1812.4,1812.3,3.8876]
[1743386087586,0.00827882,1812.4,1812.3,4.99125]
[1743386087793,0.00827882,1812.4,1812.3,3.8876]
[1743386087995,1.11186882,1812.4,1812.3,3.8876]
[1743386088388,1.11186882,1812.4,1812.3,0.6798]
[1743386089989,1.11186882,1812.4,1812.2,2.2281]
[1743386089990,0.00827882,1812.4,1812.2,2.2281]
[1743386090295,1.10365,1812.3,1812.2,1.4971]
[1743386095199,1.10384,1812.0,1811.9,4.6159]
[1743386095393,7.19640882,1812.4,1812.0,1.3863]
[1743386095394,1.10382,1812.1,1812.0,1.3863]
[1743386097797,4.078,1812.2,1812.0,1.3863]
[1743386098003,1.10378,1812.1,1812.0,1.3863]
[1743386100205,2.32448,1812.1,1812.0,1.3863]
[1743386100400,3.06158,1812.1,1812.0,1.36974236]
[1743386100796,2.32448,1812.1,1812.0,1.36974236]
[1743386101711,1.10396,1811.8,1811.7,3.2078]
[1743386102109,5.2987,1812.1,1811.7,3.2078]
[1743386102315,5.4998,1812.3,1811.9,3.2078]
[1743386102611,1.10384,1812.0,1811.9,3.2078]
[1743386102810,5.4998,1812.3,1811.7,8.38978]
[1743386102811,1.1039,1811.9,1811.7,8.38978]
[1743386103004,1.1039,1811.9,1811.7,4.31182]
[1743386103609,1.1039,1811.9,1811.8,1.3559]
[1743386105113,1.10387,1812.0,1811.8,1.3559]
[1743386105312,1.1039,1811.9,1811.8,1.3559]
[1743386106610,1.10396,1811.8,1811.7,3.2078]
[1743386106815,1.10396,1811.8,1811.7,4.6788]
[1743386108609,1.4218,1812.3,1811.7,4.6788]
[1743386108811,0.00827882,1812.4,1812.0,3.2078]
[1743386109006,0.00827882,1812.4,1812.1,1.4054]
[1743386109007,1.10371,1812.2,1812.1,1.4054]
[1743386112414,1.1039,1811.9,1811.8,3.2078]
[1743386113814,5.97510882,1812.4,1811.8,3.2078]
[1743386114009,1.10377,1812.2,1811.9,1.4918]
[1743386114316,1.10378,1812.1,1812.0,0.7101]
[1743386115212,1.1039,1811.9,1811.8,3.2078]
[1743386118218,1.1039,1811.9,1811.6,6.62244882]
[1743386118519,1.1039,1811.9,1811.8,3.2078]
[1743386119016,1.10402,1811.7,1811.6,4.64817882]
[1743386119224,1.10402,1811.7,1811.6,3.21607882]
[1743386119413,3.60402,1811.7,1811.6,3.21607882]
[1743386119608,2.34212,1811.7,1811.6,3.21607882]
[1743386120124,5.27263089,1811.7,1811.6,0.00827882]
[1743386120323,4.84212,1811.7,1811.6,0.00827882]
[1743386120722,1.1042,1811.4,1811.3,3.2078]
[1743386121416,2.3423,1811.4,1811.3,3.2078]
[1743386122023,1.1042,1811.4,1811.3,3.2078]
[1743386129829,1.1042,1811.4,1811.3,4.5824]
[1743386134931,2.75952,1812.1,1811.3,8.6604]
[1743386135131,1.10401,1811.8,1811.5,4.31193]
[1743386135332,1.10402,1811.7,1811.6,2.1142]
[1743386135531,4.078,1812.1,1811.6,2.1142]
[1743386135738,1.10387,1812.0,1811.7,5.72172]
[1743386136041,1.10387,1812.0,1811.8,0.7335]
[1743386136335,1.10387,1812.0,1811.9,1.4099]
[1743386138934,6.42087,1812.0,1811.9,1.4099]
[1743386140041,1.1042,1811.4,1811.3,3.2078]
[1743386141438,1.1042,1811.4,1811.3,4.6959]
[1743386142942,1.2397,1811.6,1811.3,4.6959]
[1743386143142,3.2078,1811.8,1811.4,1.4881]
[1743386143643,1.10412,1811.6,1811.4,1.4881]
[1743386143838,1.10412,1811.6,1811.5,0.702]
[1743386149240,1.10414,1811.5,1811.4,1.4881]
[1743386149549,2.34454,1811.5,1811.4,1.4881]
[1743386151250,1.10414,1811.5,1811.4,1.4881]
[1743386152151,1.10409,1811.6,1811.4,1.4881]
[1743386152347,1.10413,1811.6,1811.4,1.4881]
[1743386152545,1.10413,1811.6,1811.5,0.7094]
[1743386155150,1.10408,1811.6,1811.5,3.9172]
[1743386156147,1.10406,1811.7,1811.5,3.9172]
[1743386156345,1.10406,1811.7,1811.6,2.1353]
[1743386158249,1.10406,1811.7,1811.6,1.425]
[1743386158750,2.34456,1811.7,1811.6,1.425]
[1743386158941,1.1042,1811.4,1811.3,3.2078]
[1743386159649,1.10426,1811.3,1811.2,0.00827882]
[1743386160248,1.10426,1811.3,1811.2,1.44867882]
[1743386160451,0.00827882,1811.4,1811.3,1.10426]
[1743386160651,0.00827882,1811.4,1811.3,8.38706]
[1743386160849,0.00827882,1811.4,1811.3,8.7232]
[1743386161957,0.00827882,1811.4,1811.3,9.82746]
[1743386162257,1.10405,1811.7,1811.4,1.10419]
[1743386162449,1.10405,1811.7,1811.5,5.3471]
[1743386162650,1.10405,1811.7,1811.6,1.432]
[1743386165654,1.10402,1811.7,1811.6,1.432]
[1743386165854,0.00827882,1811.8,1811.6,2.53607]
[1743386166062,1.11226882,1811.8,1811.7,1.4469]
[1743386167354,0.00827882,1811.8,1811.7,4.6547]
[1743386167559,0.00827882,1811.8,1811.7,5.75872]
[1743386167761,0.00827882,1811.8,1811.7,4.6547]
[1743386168858,21.35392738,1812.0,1811.7,4.6547]
[1743386169052,22.45776738,1812.0,1811.9,3.2078]
[1743386169255,1.10384,1812.0,1811.9,3.2078]
[1743386169448,1.10381,1812.1,1811.9,5.3258]
[1743386169652,1.10381,1812.1,1812.0,1.3689]
[1743386170659,1.10926927,1812.2,1812.0,1.3689]
[1743386170860,1.10926927,1812.2,1812.1,3.2078]
[1743386172253,1.10926927,1812.2,1812.1,3.8873]
[1743386173863,1.10922927,1812.2,1812.1,3.8873]
[1743386176160,1.10922927,1812.2,1812.1,3.2078]
[1743386176355,2.35042927,1812.2,1812.1,3.2078]
[1743386176663,1.10922927,1812.2,1812.1,3.2078]
[1743386178165,0.00551927,1812.2,1812.1,3.2078]
[1743386178354,0.00551927,1812.2,1812.1,3.9507]
[1743386178764,0.00551927,1812.2,1812.1,5.3935]
[1743386179751,0.00551927,1812.2,1812.1,6.49728]
[1743386180559,0.00551927,1812.2,1812.1,5.3935]
[1743386180758,0.00551927,1812.2,1812.1,6.49728]
[1743386181054,1.10922927,1812.2,1812.1,9.4645]
[1743386181262,1.10922927,1812.2,1812.1,5.3935]
[1743386181463,0.00551927,1812.2,1812.1,5.3935]
[1743386181757,0.00551927,1812.2,1812.1,6.49728]
[1743386181958,0.00551927,1812.2,1812.1,5.3935]
[1743386182359,1.10922927,1812.2,1812.1,5.3935]
[1743386182669,0.00551927,1812.2,1812.1,5.3935]
[1743386182965,1.10922927,1812.2,1812.1,5.3935]
[1743386183366,1.10922927,1812.2,1812.1,4.6506]
[1743386187764,0.00551927,1812.2,1812.1,4.6506]
[1743386188169,1.10922927,1812.2,1812.1,4.6506]
[1743386188764,0.00551927,1812.2,1812.1,4.6506]
[1743386189272,1.10922927,1812.2,1812.1,4.6506]
[1743386190667,0.00551927,1812.2,1812.1,4.6506]
[1743386191362,1.10922927,1812.2,1812.1,4.6506]
[1743386192272,1.10922927,1812.2,1811.5,3.2078]
[1743386192273,2.75969,1812.0,1811.5,3.2078]
[1743386192573,1.10402,1811.7,1811.6,1.3936]
[1743386193669,2.57062,1811.7,1811.6,1.3936]
[1743386194272,2.34478,1811.8,1811.6,1.3936]
[1743386194476,2.3448,1811.8,1811.7,3.2078]
[1743386194879,1.104,1811.8,1811.7,3.2078]
[1743386196468,1.10402,1811.7,1811.6,1.3936]
[1743386199072,1.10402,1811.7,1811.5,3.2078]
[1743386199073,1.10408,1811.6,1811.5,3.2078]
[1743386199470,1.1042,1811.4,1811.3,1.3959]
[1743386199670,1.10426,1811.3,1811.2,0.00827882]
[1743386199865,3.03566,1811.3,1811.2,0.00827882]
[1743386200375,3.77066,1811.3,1811.2,1.40417882]
[1743386200772,9.47846,1811.3,1811.2,0.00827882]
[1743386201977,6.97846,1811.3,1811.2,0.00827882]
[1743386202876,6.24346,1811.3,1811.2,0.00827882]
[1743386203381,6.24346,1811.3,1811.2,1.36587882]
[1743386204984,8.74346,1811.3,1811.2,0.00827882]
[1743386205277,9.45846,1811.3,1811.2,0.00827882]
[1743386206278,6.95846,1811.3,1811.2,0.00827882]
[1743386207593,6.95846,1811.3,1810.6,4.069]
[1743386207594,1.10469,1810.6,1810.5,3.889]
[1743386208795,1.11290882,1810.7,1810.5,3.889]
[1743386209093,1.11290882,1810.7,1810.6,2.2241]
[1743386209793,0.00827882,1810.7,1810.6,2.2241]
[1743386211297,1.11290882,1810.7,1810.6,2.2241]
[1743386213990,1.11290882,1810.7,1810.6,1.4861]
[1743386214696,0.00827882,1810.7,1810.6,1.4861]
[1743386214895,1.10442,1811.1,1810.6,3.9861]
[1743386215099,1.10444,1811.1,1810.9,3.2078]
[1743386215300,1.10444,1811.1,1811.0,0.6887]
[1743386215494,1.9434,1811.3,1811.0,2.1666]
[1743386215793,1.10433,1811.2,1811.1,3.2078]
[1743386215998,1.10433,1811.2,1811.1,4.6857]
[1743386217095,1.10451,1810.9,1810.8,3.2078]
[1743386217791,8.26299,1811.1,1810.8,3.2078]
[1743386217792,1.10446,1811.0,1810.8,3.2078]
[1743386217994,4.068,1811.0,1810.8,3.2078]
[1743386218299,1.10451,1810.9,1810.8,3.2078]
[1743386223606,3.21331927,1811.3,1810.8,3.2078]
[1743386223797,0.00551927,1811.3,1811.0,3.2078]
[1743386224000,0.00551927,1811.3,1811.1,2.2205]
[1743386224200,0.00551927,1811.3,1811.2,4.6963]
[1743386224897,1.10977927,1811.3,1811.2,4.6963]
[1743386227707,0.00551927,1811.3,1811.2,4.6963]
[1743386227910,0.00551927,1811.3,1811.2,5.80062]
[1743386228098,0.00551927,1811.3,1811.2,4.6963]
[1743386228299,0.00551927,1811.3,1811.2,5.80062]
[1743386228499,0.00551927,1811.3,1811.2,9.86662]
[1743386228696,0.00551927,1811.3,1811.2,8.7623]
[1743386229312,0.00551927,1811.3,1811.2,10.31376509]
[1743386229609,1.1041,1811.6,1811.3,1.10423]
[1743386229801,1.2405,1812.1,1811.5,3.2078]
[1743386230109,1.10398,1811.8,1811.7,3.2078]
[1743386231596,1.10398,1811.8,1811.6,0.00827882]
[1743386231597,1.10402,1811.7,1811.6,0.00827882]
[1743386231909,1.10402,1811.7,1811.1,0.6817]
[1743386231910,1.10432,1811.2,1811.1,0.6817]
[1743386232108,1.10445,1811.0,1810.9,3.2078]
[1743386232307,1.10457,1810.8,1810.7,3.8895]
[1743386232510,7.2101,1811.1,1810.5,3.2078]
[1743386232511,1.2412,1810.9,1810.5,3.2078]
[1743386232707,1.10469,1810.6,1810.5,3.2078]
[1743386232906,1.10469,1810.6,1810.5,3.21607882]
[1743386234913,1.10465,1810.7,1810.5,3.21607882]
[1743386235309,0.00827881,1810.9,1810.5,3.21607882]
[1743386235505,1.11278881,1810.9,1810.8,3.2078]
[1743386241517,0.00827881,1810.9,1810.8,3.2078]
[1743386241716,1.11278881,1810.9,1810.8,3.2078]
[1743386242714,0.00827881,1810.9,1810.8,3.2078]
[1743386243214,1.11278881,1810.9,1810.8,3.2078]
[1743386243417,0.00827881,1810.9,1810.8,3.2078]
[1743386244510,1.11278881,1810.9,1810.8,3.2078]
[1743386245923,2.35418881,1810.9,1810.8,3.2078]
[1743386246224,1.10469,1810.6,1810.5,0.75767882]
[1743386247122,1.10469,1810.6,1810.5,0.00827882]
[1743386247520,2.34579,1810.6,1810.5,0.00827882]
[1743386247823,5.55359,1810.6,1810.5,0.00827882]
[1743386248821,1.10469,1810.6,1810.5,0.00827882]
[1743386250619,2.34629,1810.6,1810.5,0.00827882]
[1743386251222,1.10469,1810.6,1810.5,0.00827882]
[1743386251621,5.2016,1810.8,1810.5,1.41647882]
[1743386251823,1.10463,1810.7,1810.6,1.4585]
[1743386256228,1.10461,1810.8,1810.6,1.4585]
[1743386256428,1.10457,1810.8,1810.6,1.4585]
[1743386256625,0.00827881,1810.9,1810.6,1.4585]
[1743386256929,1.10463,1810.7,1810.6,1.4585]
[1743386261723,3.47058881,1810.9,1810.6,1.4585]
[1743386261724,0.00827881,1810.9,1810.6,1.4585]